bitfinex-derivatives/quotes_BNBF0:USTF0_20250331
["timestamp","ask_amount","ask_price","bid_price","bid_amount"]
[1743415965034,1.269,587.64,587.38,0.34049507]
[1743415965035,1.269,587.64,587.4,0.27519698]
[1743415965240,1.269,587.64,587.39,0.27519698]
[1743415965441,1.269,587.64,587.4,0.27519698]
[1743415965640,1.269,587.64,587.39,0.27519698]
[1743415965837,1.269,587.64,587.4,0.2752002]
[1743415966044,1.269,587.64,587.39,0.2752002]
[1743415966240,1.269,587.64,587.4,0.2752002]
[1743415966441,1.269,587.64,587.39,0.2752002]
[1743415966742,1.269,587.64,587.4,0.2752002]
[1743415966938,1.269,587.64,587.39,0.2752002]
[1743415967139,1.269,587.64,587.4,0.2752002]
[1743415967446,1.269,587.64,587.38,0.34049507]
[1743415967646,1.269,587.64,587.39,0.27520354]
[1743415969746,1.269,587.64,587.4,0.27520354]
[1743415969948,1.269,587.64,587.41,0.27520354]
[1743415970149,1.269,587.64,587.42,0.27520354]
[1743415970345,1.269,587.64,587.39,0.27520354]
[1743415971254,1.269,587.64,587.38,0.34049507]
[1743415971452,1.269,587.64,587.39,0.2752177]
[1743415972750,0.29613115,588.08,587.39,0.2752177]
[1743415973151,2.36389914,588.34,587.39,0.2752177]
[1743415973351,1.46047486,588.33,587.39,0.2752177]
[1743415973552,1.46047486,588.32,587.39,0.2752177]
[1743415973751,1.46047486,588.31,587.39,0.2752177]
[1743415974053,3.18653732,588.31,587.39,0.2752177]
[1743415974451,0.29602913,588.3,587.39,0.2752177]
[1743415974847,0.29602913,588.3,587.4,0.34048348]
[1743415975045,0.29602913,588.3,587.41,0.2752177]
[1743415975251,0.29602913,588.3,587.42,0.34047189]
[1743415975450,1.239,588.29,587.43,0.2752177]
[1743415975755,1.239,588.29,587.44,0.3404603]
[1743415975954,1.239,588.29,587.45,0.2752177]
[1743415976152,0.93,588.28,587.45,0.2752177]
[1743415976555,2.36669751,588.27,587.45,0.2752177]
[1743415976755,1.46221868,588.26,587.45,0.2752177]
[1743415976954,3.19015186,588.27,587.45,0.2752177]
[1743415977155,1.22698148,588.25,587.45,0.2752177]
[1743415977657,1.22698148,588.24,587.46,0.61566641]
[1743415977955,1.22698148,588.24,587.47,0.61566061]
[1743415978154,1.22698148,588.24,587.48,0.61565482]
[1743415978457,1.22600898,588.28,587.49,0.61564902]
[1743415978656,1.22600898,588.28,587.5,0.61564323]
[1743415978856,1.22600898,588.28,587.51,0.61563743]
[1743415979156,0.93,588.28,587.52,0.61563164]
[1743415979356,0.93,588.28,587.2,2.5552563]
[1743415979357,0.93,588.28,587.53,0.61562584]
[1743415979655,0.93,588.28,587.54,0.61562005]
[1743415979957,0.93,588.28,587.55,0.61561426]
[1743415980154,0.93,588.28,587.56,0.61560846]
[1743415980457,0.93,588.28,587.57,0.61560267]
[1743415980657,0.93,588.28,587.58,0.61559688]
[1743415980850,0.93,588.28,587.59,0.61559108]
[1743415981055,0.93,588.28,587.6,0.2752177]
[1743415981456,0.93,588.28,587.59,0.34037338]
[1743415981457,1.4634847,588.27,587.61,0.2752177]
[1743415981656,1.4634847,588.26,587.6,0.2752177]
[1743415981853,3.19297763,588.26,587.61,0.2752177]
[1743415982057,2.36835313,588.25,587.6,0.2752177]
[1743415982256,2.36835313,588.24,587.6,0.2752177]
[1743415982457,3.19297763,588.26,587.6,0.2752177]
[1743415982458,4.70900719,588.23,587.6,0.2752177]
[1743415982759,2.36835313,588.22,587.6,0.2752177]
[1743415982953,2.36835313,588.21,587.6,0.2752177]
[1743415983153,2.36835313,588.2,587.6,0.2752177]
[1743415983354,2.36835313,588.19,587.6,0.2752177]
[1743415983553,4.70912916,588.18,587.6,0.2752177]
[1743415983762,2.36835313,588.17,587.6,0.2752177]
[1743415983959,2.36835313,588.16,587.59,0.34037338]
[1743415984262,2.36835313,588.15,587.59,0.34037338]
[1743415984555,2.36835313,588.14,587.59,0.34037338]
[1743415984760,2.36835313,588.13,587.59,0.34037338]
[1743415984960,1.46325651,588.12,587.6,0.27522109]
[1743415985260,1.46325651,588.11,587.6,0.27522109]
[1743415985455,3.19297763,588.12,587.6,0.27522109]
[1743415986461,1.22806832,588.11,587.6,0.27522109]
[1743415987065,1.22806832,588.1,587.6,0.27522109]
[1743415987564,1.22806832,588.09,587.6,0.27522109]
[1743415988359,1.22806832,588.08,587.6,0.27522109]
[1743415989060,1.239,588.29,587.6,0.27522109]
[1743415989665,0.72,588.28,587.61,0.3403618]
[1743415989863,1.94861355,588.28,587.62,0.27522109]
[1743415990467,1.22861355,588.27,587.62,0.27522109]
[1743415991062,0.72,588.28,587.62,0.27522109]
[1743415991063,1.22861355,588.26,587.62,0.27522109]
[1743415991260,0.72,588.28,587.62,0.27522109]
[1743415991261,1.22861355,588.25,587.62,0.27522109]
[1743415992164,1.22861355,588.24,587.62,0.27522109]
[1743415992562,0.72,588.28,587.62,0.27522109]
[1743415996569,1.083,588.27,587.62,0.27522109]
[1743415997672,1.083,588.27,587.63,0.27508917]
[1743415997871,1.083,588.27,587.62,0.27508917]
[1743415999073,1.083,588.27,587.63,0.27509084]
[1743415999268,1.4670018,588.26,587.63,0.27509084]
[1743415999469,1.46701706,588.25,587.64,0.27509084]
[1743415999665,1.083,588.27,587.62,0.27509084]
[1743415999867,1.23098855,588.24,587.63,0.27509084]
[1743416000071,1.23098855,588.24,587.62,0.27509084]
[1743416000569,1.23098855,588.23,587.62,0.27509084]
[1743416001266,1.23098855,588.22,587.62,0.27509084]
[1743416001469,1.23098855,588.22,587.63,0.27509084]
[1743416001668,1.23098855,588.21,587.64,0.27509084]
[1743416001867,1.23098855,588.21,587.62,0.27509084]
[1743416002067,1.23098855,588.21,587.63,0.27509084]
[1743416002271,1.23098855,588.2,587.62,0.27509084]
[1743416002471,1.23098855,588.2,587.64,0.27509084]
[1743416002676,1.23098855,588.2,587.65,0.27509084]
[1743416002879,1.23098855,588.2,587.62,0.27509084]
[1743416003177,1.083,588.27,587.62,0.27509084]
[1743416003778,1.23095698,588.26,587.62,0.27509084]
[1743416003972,1.23095698,588.25,587.62,0.27509084]
[1743416004373,1.026,588.24,587.62,0.27509084]
[1743416004674,1.026,588.24,587.63,0.27509084]
[1743416004879,1.026,588.24,587.62,0.27509084]
[1743416005080,1.026,588.24,587.64,0.27509084]
[1743416005375,1.026,588.24,587.65,0.27509084]
[1743416005580,1.026,588.24,587.66,0.27509084]
[1743416005779,1.026,588.24,587.61,0.3403618]
[1743416005780,1.026,588.24,587.62,0.27509084]
[1743416005973,1.026,588.24,587.63,0.27509084]
[1743416006173,1.026,588.24,587.62,0.27509084]
[1743416007075,1.026,588.24,587.61,0.3403618]
[1743416007780,1.026,588.24,587.62,0.27499636]
[1743416007980,1.026,588.24,587.63,0.34035022]
[1743416008179,1.026,588.24,587.64,0.27499636]
[1743416009779,1.026,588.24,587.65,0.34033863]
[1743416009977,1.026,588.24,587.66,0.27499636]
[1743416010182,1.026,588.24,587.67,0.34032705]
[1743416010481,1.026,588.24,587.68,0.27499636]
[1743416011175,1.026,588.24,587.69,0.34031547]
[1743416011381,1.026,588.24,587.7,0.27499636]
[1743416011681,1.026,588.24,587.71,0.34030389]
[1743416011883,1.026,588.24,587.72,0.27499636]
[1743416012076,1.026,588.24,587.73,0.34029231]
[1743416012278,1.026,588.24,587.74,0.27499636]
[1743416012479,1.026,588.24,587.75,0.34028073]
[1743416012678,1.026,588.24,587.76,0.27499636]
[1743416012882,1.026,588.24,587.77,0.34026915]
[1743416013078,1.026,588.24,587.78,0.27499636]
[1743416013281,1.026,588.24,587.79,0.34025757]
[1743416013580,0.785,588.23,587.8,0.27499636]
[1743416013786,0.785,588.23,587.81,0.34024599]
[1743416013979,0.785,588.23,587.82,0.27499636]
[1743416018283,0.785,588.23,587.82,0.61523656]
[1743416018584,0.785,588.23,587.83,0.61523078]
[1743416018788,0.785,588.23,587.84,0.27499636]
[1743416020884,0.785,588.23,587.83,0.34023442]
[1743416021083,0.785,588.23,587.84,0.27496212]
[1743416021689,0.785,588.23,587.85,0.34022284]
[1743416021989,0.785,588.23,587.86,0.27496212]
[1743416022188,0.785,588.23,587.87,0.34021127]
[1743416022386,0.785,588.23,587.88,0.27496212]
[1743416022590,0.785,588.23,587.89,0.34019969]
[1743416022891,0.785,588.23,587.9,0.27496212]
[1743416023086,0.785,588.23,587.9,0.61515603]
[1743416023292,0.785,588.23,587.91,0.27496212]
[1743416025189,0.785,588.23,587.92,0.27496212]
[1743416025397,0.785,588.23,587.93,0.27496212]
[1743416025593,0.785,588.23,587.94,0.27496212]
[1743416025789,0.785,588.23,587.91,0.27496212]
[1743416025990,0.785,588.23,587.92,0.27496212]
[1743416026194,0.785,588.23,587.93,0.27496212]
[1743416026394,0.785,588.23,587.9,0.34019391]
[1743416026593,0.785,588.23,587.91,0.274928]
[1743416026893,0.785,588.23,587.9,0.34019391]
[1743416026894,0.785,588.23,587.92,0.274928]
[1743416027089,0.785,588.23,587.93,0.274928]
[1743416027294,0.785,588.23,587.94,0.274928]
[1743416027495,0.785,588.23,587.9,0.34019391]
[1743416027496,0.785,588.23,587.91,0.274928]
[1743416027695,0.785,588.23,587.92,0.274928]
[1743416027893,0.785,588.23,587.93,0.274928]
[1743416028089,0.785,588.23,587.94,0.274928]
[1743416028395,0.785,588.23,587.95,0.274928]
[1743416028595,0.785,588.23,587.96,0.274928]
[1743416028796,0.785,588.23,587.91,0.274928]
[1743416028997,0.785,588.23,587.92,0.274928]
[1743416029191,0.785,588.23,587.93,0.274928]
[1743416029396,0.785,588.23,587.91,0.274928]
[1743416029899,0.785,588.23,587.9,0.34019391]
[1743416030091,0.785,588.23,587.91,0.27492964]
[1743416033595,1.271,588.24,587.91,0.27492964]
[1743416033798,1.271,588.24,587.9,0.34019391]
[1743416033995,1.271,588.24,587.91,0.27492836]
[1743416037604,1.069,588.31,587.91,0.27492836]
[1743416040903,1.069,588.31,587.92,0.27492421]
[1743416041103,1.069,588.31,587.91,0.27492421]
[1743416041304,1.069,588.31,587.92,0.27492421]
[1743416041502,1.069,588.31,587.91,0.27492421]
[1743416041702,1.069,588.31,587.9,0.34019391]
[1743416041703,1.069,588.31,587.92,0.27492421]
[1743416041899,1.069,588.31,587.91,0.27492421]
[1743416042100,1.069,588.31,587.92,0.27492421]
[1743416042299,1.069,588.31,587.91,0.27492421]
[1743416042500,1.069,588.31,587.92,0.27492421]
[1743416042707,1.069,588.31,587.91,0.27492421]
[1743416042901,1.069,588.31,587.92,0.27492421]
[1743416043301,1.069,588.31,587.93,0.27492421]
[1743416043509,1.069,588.31,587.94,0.27492421]
[1743416043703,1.069,588.31,587.91,0.27492421]
[1743416043905,1.069,588.31,587.92,0.27492421]
[1743416044303,1.069,588.31,587.93,0.27492421]
[1743416044509,1.069,588.31,587.94,0.27492421]
[1743416044705,1.069,588.31,587.91,0.27492421]
[1743416044908,1.069,588.31,587.92,0.27492421]
[1743416045107,1.069,588.31,587.46,2.85115705]
[1743416045108,1.069,588.31,587.93,0.27492421]
[1743416045310,1.069,588.31,587.47,0.27492421]
[1743416045506,1.069,588.31,587.48,0.61536133]
[1743416045808,1.266,588.3,587.49,0.61535553]
[1743416046010,1.266,588.3,587.5,0.61534974]
[1743416046209,1.266,588.3,587.51,0.61534394]
[1743416046411,1.266,588.3,587.43,0.29596367]
[1743416046412,1.266,588.3,587.52,0.61533815]
[1743416046711,1.266,588.3,587.53,0.61533235]
[1743416046906,1.266,588.3,587.54,0.61532656]
[1743416047111,1.266,588.3,587.55,0.61532077]
[1743416047311,1.266,588.3,587.56,0.61531497]
[1743416047508,1.266,588.3,587.57,0.61530918]
[1743416047706,1.266,588.3,587.58,0.61530339]
[1743416048004,1.266,588.3,587.59,0.61529759]
[1743416048210,1.266,588.3,587.6,0.27492421]
[1743416048410,1.266,588.3,587.61,0.27492421]
[1743416048606,1.266,588.3,587.62,0.27492421]
[1743416048806,1.266,588.3,587.63,0.27492421]
[1743416049009,1.266,588.3,587.64,0.27492421]
[1743416049212,1.266,588.3,587.65,0.27492421]
[1743416049609,1.266,588.3,587.66,0.27492421]
[1743416049812,1.266,588.3,587.67,0.27492421]
[1743416050007,1.266,588.3,587.68,0.27492421]
[1743416050314,1.266,588.3,587.69,0.27492421]
[1743416050512,1.266,588.3,587.7,0.27492421]
[1743416050709,1.266,588.3,587.71,0.27492421]
[1743416050912,1.266,588.3,587.61,0.27492421]
[1743416051215,1.266,588.3,587.62,0.27492421]
[1743416051613,1.266,588.3,587.63,0.27492421]
[1743416051914,1.266,588.3,587.64,0.27492421]
[1743416052109,1.266,588.3,587.65,0.27492421]
[1743416052308,1.266,588.3,587.66,0.27492421]
[1743416052509,1.266,588.3,587.67,0.27492421]
[1743416052711,1.266,588.3,587.68,0.27492421]
[1743416052909,1.266,588.3,587.61,0.27492421]
[1743416053110,1.266,588.3,587.62,0.27492421]
[1743416053311,1.266,588.3,587.63,0.27492421]
[1743416053511,1.266,588.3,587.63,0.61527443]
[1743416053816,1.266,588.3,587.64,0.27492421]
[1743416054014,1.266,588.3,587.65,0.27492421]
[1743416054210,1.266,588.3,587.65,0.61526284]
[1743416054414,1.266,588.3,587.66,0.27492421]
[1743416054717,1.266,588.3,587.67,0.27492421]
[1743416054912,1.266,588.3,587.68,0.27492421]
[1743416055116,1.266,588.3,587.69,0.27492421]
[1743416055311,1.266,588.3,587.71,2.5552563]
[1743416055512,1.266,588.3,587.72,0.27492421]
[1743416055817,1.266,588.3,587.73,0.61521652]
[1743416056018,1.266,588.3,587.74,0.27492421]
[1743416056316,1.266,588.3,587.73,0.34029231]
[1743416056317,1.266,588.3,587.75,0.27492421]
[1743416056518,1.266,588.3,587.76,0.61519915]
[1743416056717,1.266,588.3,587.77,0.61519336]
[1743416056917,1.266,588.3,587.78,0.61518757]
[1743416057113,1.266,588.3,587.79,0.27492421]
[1743416057417,1.266,588.3,587.8,0.27492421]
[1743416057615,1.266,588.3,587.81,0.6151702]
[1743416057822,1.266,588.3,587.82,0.61516441]
[1743416058015,1.266,588.3,587.83,0.61515863]
[1743416058221,1.266,588.3,587.84,0.61515284]
[1743416058522,1.266,588.3,587.58,2.5552563]
[1743416058523,1.266,588.3,587.85,0.61514048]
[1743416058722,1.266,588.3,587.86,0.61513469]
[1743416058916,1.266,588.3,587.87,0.61512891]
[1743416059118,1.266,588.3,587.87,0.34021127]
[1743416059324,1.266,588.3,587.88,0.27491895]
[1743416060219,1.266,588.3,587.88,0.61512443]
[1743416060419,1.266,588.3,587.89,0.27493418]
[1743416060619,1.266,588.3,587.9,0.34019391]
[1743416060819,1.266,588.3,587.91,0.27493418]
[1743416062024,1.266,588.3,587.9,0.34019391]
[1743416062325,1.266,588.3,587.91,0.27493045]
[1743416063827,1.266,588.3,587.92,0.27493054]
[1743416064021,1.266,588.3,587.93,0.27493054]
[1743416064219,1.266,588.3,587.91,0.27493054]
[1743416064419,1.266,588.3,587.92,0.27493054]
[1743416064624,1.266,588.3,587.91,0.27493054]
[1743416064822,1.266,588.3,587.92,0.27493054]
[1743416065019,1.266,588.3,587.93,0.34017655]
[1743416065221,1.266,588.3,587.94,0.27493054]
[1743416065424,1.266,588.3,587.95,0.34016498]
[1743416065626,1.266,588.3,587.96,0.27493054]
[1743416065823,1.266,588.3,587.96,0.61508973]
[1743416066024,1.266,588.3,587.97,0.27493054]
[1743416067034,1.266,588.3,587.98,0.61507816]
[1743416067235,1.266,588.3,587.99,0.61507237]
[1743416067429,1.266,588.3,588.0,0.34013605]
[1743416067733,1.266,588.3,588.01,0.27493054]
[1743416067934,1.266,588.3,588.02,0.61505502]
[1743416068127,1.266,588.3,588.03,0.3401187]
[1743416068331,1.266,588.3,588.04,0.27493054]
[1743416068534,1.266,588.3,588.05,0.61503767]
[1743416068728,1.266,588.3,588.06,0.27493054]
[1743416068931,1.266,588.3,588.05,0.34010713]
[1743416068932,1.266,588.3,588.07,0.27493054]
[1743416069132,1.266,588.3,588.08,0.27493054]
[1743416069331,1.266,588.3,587.72,0.29581146]
[1743416069332,1.266,588.3,588.09,0.61501454]
[1743416069534,1.266,588.3,588.1,0.34007821]
[1743416069734,1.266,588.3,588.11,0.27493054]
[1743416069935,1.266,588.3,588.12,0.27493054]
[1743416070135,1.266,588.3,588.1,0.34007821]
[1743416070929,1.266,588.3,588.11,0.27473849]
[1743416071332,1.266,588.3,588.12,0.27473849]
[1743416071532,1.266,588.3,587.74,2.5552563]
[1743416071533,1.266,588.3,588.13,0.61479936]
[1743416071737,1.266,588.3,588.14,0.27473849]
[1743416071936,1.266,588.3,588.15,0.27473849]
[1743416072237,1.266,588.3,588.16,0.27473849]
[1743416072531,1.266,588.3,588.17,0.61477623]
[1743416072736,1.266,588.3,588.18,0.61477045]
[1743416072937,1.266,588.3,588.19,0.61475368]
[1743416073334,1.266,588.3,588.2,0.2747275]
[1743416074130,1.266,588.3,588.21,0.34001462]
[1743416074330,1.266,588.3,588.22,0.2747275]
[1743416074534,1.266,588.3,588.21,0.34001462]
[1743416074733,1.266,588.3,588.22,0.27474605]
[1743416076537,1.266,588.3,588.22,0.34000884]
[1743416076732,1.266,588.3,588.23,0.27476008]
[1743416078931,1.266,588.3,588.24,0.33999728]
[1743416079136,1.266,588.3,588.25,0.27476008]
[1743416079534,1.266,588.3,588.26,0.33998572]
[1743416079737,1.266,588.3,588.27,0.27476008]
[1743416079938,1.266,588.3,588.28,0.33997416]
[1743416080242,1.266,588.3,588.29,0.27476008]
[1743416081038,1.266,588.3,588.29,0.61472846]
[1743416081840,1.266,588.3,588.29,0.33996838]
[1743416082042,1.266,588.3,588.29,0.61466114]
[1743416082937,1.117,588.65,588.29,0.61466114]
[1743416083140,1.117,588.65,588.3,0.61465536]
[1743416083339,1.117,588.65,588.31,0.61464958]
[1743416083539,1.117,588.65,588.32,0.27469276]
[1743416083744,1.117,588.65,588.33,0.27469276]
[1743416083939,1.117,588.65,588.34,0.27469276]
[1743416084244,1.117,588.65,588.35,0.27469276]
[1743416084544,1.117,588.65,588.36,0.27469276]
[1743416084745,1.117,588.65,588.32,0.27469276]
[1743416084945,1.117,588.65,588.33,0.61463802]
[1743416085145,1.117,588.65,588.34,0.61463225]
[1743416085348,1.117,588.65,588.35,0.27469276]
[1743416085641,1.117,588.65,588.36,0.61462069]
[1743416085846,1.117,588.65,588.37,0.61461491]
[1743416086048,1.117,588.65,588.38,0.61460914]
[1743416086246,1.117,588.65,588.39,0.61460336]
[1743416086445,1.117,588.65,588.16,0.2956004]
[1743416086446,1.117,588.65,588.4,0.61459758]
[1743416086646,1.117,588.65,588.41,0.6145918]
[1743416086846,1.117,588.65,588.42,0.61458603]
[1743416087046,1.117,588.65,588.43,0.27469276]
[1743416087246,1.117,588.65,588.44,0.33988172]
[1743416087445,1.117,588.65,588.45,0.27469276]
[1743416093144,1.117,588.65,588.44,0.33988172]
[1743416093348,1.117,588.65,588.45,0.2746934]
[1743416094452,1.117,588.65,588.46,0.27468609]
[1743416094654,1.117,588.65,588.45,0.27468609]
[1743416095848,0.843,588.72,588.45,0.27468609]
[1743416096350,0.843,588.72,588.44,0.33988172]
[1743416096351,0.843,588.72,588.46,0.27467615]
[1743416096551,0.843,588.72,588.45,0.27467615]
[1743416098356,0.843,588.72,588.46,0.33987016]
[1743416098557,0.843,588.72,588.47,0.27467615]
[1743416098757,0.843,588.72,588.47,0.61454054]
[1743416098959,0.843,588.72,588.48,0.27467615]
[1743416099354,0.761,588.79,588.48,0.27467615]
[1743416100556,0.761,588.79,588.47,0.33986439]
[1743416101953,1.004,588.85,588.47,0.33986439]
[1743416103655,1.004,588.85,588.48,0.27469787]
[1743416106162,1.004,588.85,588.47,0.33986439]
[1743416106356,1.004,588.85,588.48,0.27464307]
[1743416106961,1.004,588.85,588.47,0.33986439]
[1743416107462,1.004,588.85,588.48,0.27467848]
[1743416109764,1.004,588.85,588.47,0.33986439]
[1743416109959,1.004,588.85,588.48,0.27468443]
[1743416117871,1.997,588.86,588.48,0.27468443]
[1743416118972,1.997,588.86,587.99,0.29561923]
[1743416118973,1.997,588.86,588.49,0.27468443]
[1743416119171,1.997,588.86,588.0,0.27468443]
[1743416119369,1.997,588.86,588.01,0.61481469]
[1743416119566,1.997,588.86,588.02,0.61480891]
[1743416119871,1.997,588.86,588.03,0.61480313]
[1743416120072,1.997,588.86,588.04,0.61479734]
[1743416120267,1.997,588.86,588.05,0.27468443]
[1743416120473,1.997,588.86,588.06,0.27468443]
[1743416120673,1.997,588.86,588.07,0.27468443]
[1743416120875,1.997,588.86,588.08,0.27468443]
[1743416121066,1.997,588.86,588.09,0.27468443]
[1743416121271,0.891,588.85,588.1,0.27468443]
[1743416121575,0.891,588.85,588.11,0.27468443]
[1743416121869,0.891,588.85,588.12,0.27468443]
[1743416122074,0.891,588.85,587.95,0.27468443]
[1743416122274,0.891,588.85,587.96,0.27468443]
[1743416122669,0.891,588.85,587.97,0.27468443]
[1743416122869,0.891,588.85,587.98,0.27468443]
[1743416123071,0.891,588.85,587.95,0.27468443]
[1743416123273,0.891,588.85,587.96,0.27468443]
[1743416123469,0.891,588.85,587.97,0.27468443]
[1743416123674,0.891,588.85,587.98,0.27468443]
[1743416123875,0.891,588.85,587.99,0.27468443]
[1743416124069,0.891,588.85,588.0,0.27468443]
[1743416124275,0.891,588.85,588.01,0.27468443]
[1743416124476,1.156,588.84,588.02,0.27468443]
[1743416124774,1.156,588.84,588.03,0.27468443]
[1743416124977,1.156,588.84,588.04,0.27468443]
[1743416125273,1.156,588.84,588.05,0.27468443]
[1743416125474,1.156,588.84,588.06,0.27468443]
[1743416125677,1.156,588.84,588.07,0.27468443]
[1743416126071,1.156,588.84,588.08,0.27468443]
[1743416126275,1.156,588.84,587.95,0.27468443]
[1743416126479,1.156,588.84,587.84,2.5552563]
[1743416126480,1.156,588.84,587.96,0.27468443]
[1743416126778,1.156,588.84,587.97,0.27468443]
[1743416126979,1.156,588.84,587.98,0.27468443]
[1743416127281,1.156,588.84,587.99,0.27468443]
[1743416127472,1.156,588.84,588.0,0.27468443]
[1743416127672,1.156,588.84,587.94,0.29571594]
[1743416127877,1.156,588.84,587.95,0.27478363]
[1743416128080,1.156,588.84,587.96,0.27478363]
[1743416128279,1.156,588.84,587.97,0.27478363]
[1743416128478,1.156,588.84,587.98,0.27478363]
[1743416128674,1.156,588.84,587.99,0.27478363]
[1743416128877,1.156,588.84,588.0,0.27478363]
[1743416129078,1.156,588.84,588.01,0.27478363]
[1743416129272,1.156,588.84,588.02,0.27478277]
[1743416129579,1.156,588.84,588.03,0.27478277]
[1743416129772,1.156,588.84,588.04,0.27478277]
[1743416129981,1.156,588.84,588.05,0.27478277]
[1743416130183,1.156,588.84,588.06,0.27478277]
[1743416130377,1.156,588.84,588.07,0.27478277]
[1743416130581,1.156,588.84,588.08,0.27478277]
[1743416130783,1.156,588.84,588.09,0.27478277]
[1743416130985,1.156,588.84,588.1,0.27478277]
[1743416131286,1.156,588.84,588.11,0.27478277]
[1743416131586,1.156,588.84,588.12,0.27478277]
[1743416131778,1.156,588.84,588.13,0.27478277]
[1743416132084,1.156,588.84,588.14,0.27478277]
[1743416132287,1.156,588.84,587.95,0.27478277]
[1743416132480,1.156,588.84,587.98,0.29569333]
[1743416132681,1.156,588.84,587.99,0.27478277]
[1743416132885,1.156,588.84,588.0,0.27478277]
[1743416133085,1.156,588.84,588.01,0.27478277]
[1743416133286,1.156,588.84,588.02,0.27478277]
[1743416133588,1.156,588.84,588.03,0.27478277]
[1743416133786,1.156,588.84,588.04,0.27478277]
[1743416134086,1.156,588.84,588.05,0.27478277]
[1743416134286,1.156,588.84,588.06,0.27478277]
[1743416134480,1.156,588.84,588.07,0.27478277]
[1743416134680,1.156,588.84,588.08,0.27478277]
[1743416134984,1.156,588.84,588.09,0.27478277]
[1743416135181,1.156,588.84,588.1,0.27478277]
[1743416135381,1.156,588.84,588.11,0.27478277]
[1743416135580,1.156,588.84,587.86,2.5552563]
[1743416135581,1.156,588.84,588.12,0.27478277]
[1743416135886,1.156,588.84,587.86,2.5552563]
[1743416135887,1.156,588.84,588.13,0.27478277]
[1743416136287,1.156,588.84,588.14,0.27478277]
[1743416136489,1.156,588.84,587.98,0.29570338]
[1743416136790,1.156,588.84,587.99,0.27478277]
[1743416136987,1.156,588.84,588.0,0.27478277]
[1743416137187,1.156,588.84,588.01,0.27478277]
[1743416137591,1.156,588.84,588.02,0.27478277]
[1743416137790,1.156,588.84,588.03,0.27478277]
[1743416137985,1.156,588.84,588.04,0.27478277]
[1743416138184,1.156,588.84,588.05,0.27478277]
[1743416138385,1.156,588.84,588.06,0.27478277]
[1743416138788,1.156,588.84,588.07,0.27478277]
[1743416138989,1.156,588.84,588.08,0.27478277]
[1743416139190,1.156,588.84,588.09,0.27478277]
[1743416139385,0.867,588.83,588.1,0.27478277]
[1743416139585,0.867,588.83,588.11,0.27478277]
[1743416139785,0.867,588.83,588.12,0.27478277]
[1743416140086,0.867,588.83,588.13,0.27478277]
[1743416140292,0.867,588.83,588.14,0.27478277]
[1743416140491,0.867,588.83,588.15,0.27478277]
[1743416140790,0.867,588.83,588.16,0.27478277]
[1743416140992,0.867,588.83,588.01,0.29569207]
[1743416140993,1.62,588.83,588.17,0.27478277]
[1743416141291,1.23049405,588.82,588.18,0.27478277]
[1743416141485,1.23049405,588.82,588.19,0.27478277]
[1743416141687,1.23049405,588.82,588.2,0.27478277]
[1743416141884,1.23049405,588.81,588.21,0.27478277]
[1743416142090,1.23049405,588.81,588.22,0.27478277]
[1743416142390,1.23049405,588.81,587.88,2.5552563]
[1743416142391,1.23049405,588.8,588.23,0.27478277]
[1743416142587,1.23049405,588.8,587.96,0.29571469]
[1743416142790,1.23049405,588.8,587.97,0.27478277]
[1743416142991,1.23049405,588.8,587.98,0.27478277]
[1743416143191,1.23049405,588.79,587.99,0.27478277]
[1743416143391,1.23049405,588.79,588.0,0.27478277]
[1743416143585,1.23049405,588.79,588.01,0.27478277]
[1743416143786,1.23049405,588.78,588.02,0.27478277]
[1743416143990,1.23049405,588.78,588.03,0.27478277]
[1743416144186,1.23049405,588.77,588.04,0.27478277]
[1743416144492,1.23049405,588.77,587.88,2.5552563]